{"text_format":"1","workbook":"xlsx","n_sheets":7,"sheets":["MATRIZ DE INDICADORES","MDM-1","MDM-3 ","MDM-4","MDM-5","ACTUALIZACIONES","ITEM"],"not_rendered":{"charts":4,"images":4,"macros":1,"external_links":4,"defined_names":14,"comments":4,"pivot_tables":0},"unopened":[],"bounds":{"document_bytes":16777216,"sheet_cells":100000,"rows_first":2000,"rows_last":500,"rows_between":2000,"halvings":0,"cell_chars":16384,"cell_head_chars":4096},"cells_cut":0,"cells_raw":0,"read":"whole","date_system":"1900"}

{"sheet":"MATRIZ DE INDICADORES","index":0,"n_rows":60,"n_cols":21,"rows_kept":60,"cut":false,"hidden":false,"merged":[[35,7,39,7],[35,6,39,6],[12,17,39,17],[35,18,39,18],[26,6,34,6],[26,7,34,7],[26,8,34,8],[26,9,34,9],[35,20,39,20],[35,11,39,11],[35,10,39,10],[20,18,25,18],[20,19,25,19],[26,20,34,20],[26,10,34,10],[26,18,34,18],[26,19,34,19],[12,1,39,1],[44,1,44,20],[35,9,39,9],[35,19,39,19],[35,8,39,8],[12,3,39,3],[12,2,39,2],[20,11,25,11],[20,10,25,10],[20,9,25,9],[20,8,25,8],[20,7,25,7],[12,7,19,7],[12,6,19,6],[12,4,39,4],[26,11,34,11],[45,1,45,20],[2,18,2,20],[3,18,3,20],[4,18,4,20],[9,1,10,20],[6,16,7,17],[12,18,19,18],[12,19,19,19],[12,20,19,20],[12,11,19,11],[12,10,19,10],[12,9,19,9],[12,8,19,8],[12,5,39,5],[20,6,25,6],[20,20,25,20],[1,18,1,20],[1,1,4,2],[1,3,1,17],[2,3,2,17],[3,3,4,17]]}
[]
[null,null,null,"MACROPROCESO ESTRATÉGICO",null,null,null,null,null,null,null,null,null,null,null,null,null,null,"CÓDIGO: ESGr027"]
[null,null,null,"PROCESO GESTIÓN SISTEMAS INTEGRADOS - CALIDAD",null,null,null,null,null,null,null,null,null,null,null,null,null,null,"VERSIÓN: 8"]
[null,null,null,"MATRIZ DE MEDICIÓN Y SEGUIMIENTO A LOS PROCESOS DE GESTIÓN",null,null,null,null,null,null,null,null,null,null,null,null,null,null,"VIGENCIA: 2023-07-28"]
[null,null,null,null,null,null,null,null,null,null,null,null,null,null,null,null,null,null,"PÁGINA: 1 de 6"]
[]
[null,null,null,null,null,null,null,null,null,null,null,null,null,null,null,null,"FECHA DE ACTUALIZACIÓN:",null,"AÑO","MES","DÍA"]
[null,null,null,null,null,null,null,null,null,null,null,null,null,null,null,null,null,null,2024,10,9]
[]
[null,"ALINEACIÓN DE LOS INDICADORES CON LOS DOCUMENTOS ESTRATÉGICOS Y LOS OBJETIVOS DE CALIDAD"]
[]
[null,"PROCESO GESTIÓN","FRENTES DEL PLAN ESTRATÉGICO","LINEAMIENTOS DE LA POLÍTICA DE CALIDAD","OBJETIVOS DE CALIDAD","OBJETIVO GENERAL DEL PROCESO","OBJETIVOS ESPECÍFICOS","NOMBRE INDICADOR","FÓRMULA","TIPO DE INDICADOR","SEGUIMIENTO MEDICIÓN","META","ACTIVIDAD","RESPONSABLE DE LA ACTIVIDAD","¿QUÉ RECURSOS SE REQUIEREN?","FECHA EJECUCIÓN DE ACTIVIDADES","EVIDENCIA","¿CUÁNDO FINALIZARÁ?","RESULTADO ","NIVEL OBTENIDO","ACCESO"]
[null,"Dialogando con el Mundo","Frente Estratégico V: Dialogo transfronterizo","Buscar la articulación y participación con comunidades académicas internacionales mediante el diálogo transfronterizo","Implementar las estrategias de dialogo transfronterizo planificadas a nivel institucional","Promover el relacionamiento internacional de la Universidad de Cundinamarca con el mundo académico en ambientes globales, de modo que propicie la interacción de los profesores y estudiantes en redes y alianzas del conocimiento, en proyectos investigativos (ciencia, tecnología e innovación), voluntariado internacional, pasantías e intercambios y movilidad académica visualizada a través del currículo.","Implementar acciones estratégicas que garanticen que anualmente se realizan 120 movilidades académicas salientes para estudiantes de 5 a 10 semestre, dando alcance a la política Dialogando con el Mundo dentro de la vigencia 2024.","Estudiantes beneficiados con la implementación de la acción estratégica de movilidad académica y alianzas correspondiente a la política Dialogando con el Mundo.","Número de Movilizaciones realizadas para estudiantes de 5 a 10 semestre.","Eficacia","Semestral",80,"Planificar el cronograma de movilidad académica","Proceso Dialogando con el Mundo","Recurso Humano\nMicrosoft Office 365","nov-2023\nmar-2024","Cronograma de movilidad académica",2024,null,null,"MDM-1"]
[null,null,null,null,null,null,null,null,null,null,null,null,"Proyectar los términos de referencia para convocatoria de movilidad académica internacional","Proceso Dialogando con el Mundo","Recurso Humano\nMicrosoft Office 365","Inicio de:\nIPA 2024\nIIPA 2024","Aprobación de los términos de referencia"]
[null,null,null,null,null,null,null,null,null,null,null,null,"Apertura de la convocatoria de los términos de referencia","Proceso Dialogando con el Mundo","Recurso Humano\nMicrosoft Office 365","Inicio de:\nIPA 2024\nIIPA 2024","Publicación de la Convocatoria (Micrositio)"]
[null,null,null,null,null,null,null,null,null,null,null,null,"Realizar una mentoría virtual general (socialización) a los estudiantes y se hará de forma presencial en seccionales y extensiones","Proceso Dialogando con el Mundo","Recurso Humano\nMicrosoft Office 365","Inicio de:\nIPA 2024\nIIPA 2024","Listados de asistencia"]
[null,null,null,null,null,null,null,null,null,null,null,null,"Desarrollar las actividades descritas en el cronograma de los términos de referencia","Proceso Dialogando con el Mundo","Recurso Humano\nMicrosoft Office 365","Vigencia 2024","Listado de los pre-seleccionados y seleccionados"]
[null,null,null,null,null,null,null,null,null,null,null,null,"Solicitar los recursos de apoyo académico-económico","Proceso Dialogando con el Mundo\nDirección de Bienestar Universitario","Recurso Humano\nMicrosoft Office 365","Vigencia 2024","Publicación de la resolución de asignación presupuestal aprobada"]
[null,null,null,null,null,null,null,null,null,null,null,null,"Medir los resultados de los estudiantes beneficiados con la implementación de la acción estratégica de movilidad académica y alianzas correspondiente a la política Dialogando con el Mundo.","Proceso Dialogando con el Mundo","Recurso Humano\nMicrosoft Office 365","jun-2024\ndic-2024","Medición del indicador"]
[null,null,null,null,null,null,null,null,null,null,null,null,"Implementar acciones según los resultados","Proceso Dialogando con el Mundo","Recurso Humano\nMicrosoft Office 365","Según la necesidad","Ficha técnica del indicador - Acción formulada"]
[null,null,null,null,null,null,"Lograr la dinamización del 60% de los convenios establecidos en la Universidad de Cundinamarca a través del desarrollo de las actividades de Dialogando con el Mundo durante los dos periodos académicos del 2024.","Dinamizar convenios","Número de convenios dinamizados*100 / Número de convenios establecidos en la UDEC ","Eficacia","Semestral",0.6,"Planificar el cronograma de dinamización de los convenios","Proceso Dialogando con el Mundo","Recurso Humano\nMicrosoft Office 365","Inicio de:\nIPA 2024\nIIPA 2024","Cronograma (a partir de IPA 2024)",null,null,null,"MDM-3"]
[null,null,null,null,null,null,null,null,null,null,null,null,"Realizar relacionamiento con las Universidades Extranjeras a fin de lograr convenios ","Proceso Dialogando con el Mundo","Recurso Humano\nMicrosoft Office 365","Vigencia 2024","Correo de invitación\nReuniones o encuentros\nVisitas"]
[null,null,null,null,null,null,null,null,null,null,null,null,"Legalizar los convenios","Proceso Dialogando con el Mundo\nDirección Jurídica","Recurso Humano\nMicrosoft Office 365","Vigencia 2024","Convenios legalizados"]
[null,null,null,null,null,null,null,null,null,null,null,null,"Publicar los convenios legalizados","Proceso Dialogando con el Mundo","Recurso Humano\nMicrosoft Office 365","Vigencia 2024","Convenio publicado (Micrositio)"]
[null,null,null,null,null,null,null,null,null,null,null,null,"Medir los resultados de la ejecución de convenios","Proceso Dialogando con el Mundo","Recurso Humano\nMicrosoft Office 365","Jun - 24\nDic - 24","Medición del indicador"]
[null,null,null,null,null,null,null,null,null,null,null,null,"Implementar acciones según los resultados","Proceso Dialogando con el Mundo","Recurso Humano\nMicrosoft Office 365","Según la necesidad","Ficha técnica de indicador - Acción formulada"]
[null,null,null,null,null,null,"Dar cumplimiento para que se realicen 40 aulas espejo que permitan la consolidación del Portafolio de aulas espejo, con el apoyo de los Docentes, Estudiantes y los profesionales de Dialogando con el Mundo durante los dos periodos académicos en curso.","Cumplimiento en la realización de las Aulas Espejo","Número de Aulas Espejo realizadas","Eficacia","Semestral",40,"Planificar el cronograma de movilidad académica","Proceso Dialogando con el Mundo","Recurso Humano\nMicrosoft Office 365","feb-2024\nago-2024","Programa de experiencias internacionales mediadas por la tecnología",null,null,null,"MDM-4"]
[null,null,null,null,null,null,null,null,null,null,null,null,"Proyectar los términos de referencia para convocatoria de movilidad académica internacional","Proceso Dialogando con el Mundo","Recurso Humano\nMicrosoft Office 365","Inicio de:\nIPA 2024\nIIPA 2024","Aprobación de los términos de referencia"]
[null,null,null,null,null,null,null,null,null,null,null,null,"Apertura de la convocatoria de los términos de referencia","Proceso Dialogando con el Mundo","Recurso Humano\nMicrosoft Office 365","Inicio de:\nIPA 2024\nIIPA 2024","Publicar la convocatoria en el Micrositio"]
[null,null,null,null,null,null,null,null,null,null,null,null,"Realizar una mentoría virtual general (socialización) a los participantes","Proceso Dialogando con el Mundo","Recurso Humano\nMicrosoft Office 365","Inicio de:\nIPA 2024\nIIPA 2024","Listados de asistencia"]
[null,null,null,null,null,null,null,null,null,null,null,null,"Desarrollar las actividades descritas en el cronograma de los términos de referencia","Proceso Dialogando con el Mundo","Recurso Humano\nMicrosoft Office 365","Vigencia 2024","Cronograma de la convocatoria"]
[null,null,null,null,null,null,null,null,null,null,null,null,"Articular con la comunidad internacional las Aulas Espejo","Proceso Dialogando con el Mundo","Recurso Humano\nMicrosoft Office 365","Vigencia 2024","Consolidación de Aulas de Espejo "]
[null,null,null,null,null,null,null,null,null,null,null,null,"Certificar el evento (Aula Espejo)","Proceso Dialogando con el Mundo\nInteracción Social Universitaria","Recurso Humano\nMicrosoft Office 365","Vigencia 2024","Certificado del Evento"]
[null,null,null,null,null,null,null,null,null,null,null,null,"Medir los resultados del cumplimiento en la realización de las Aulas Espejo","Proceso Dialogando con el Mundo","Recurso Humano\nMicrosoft Office 365","Jun - 24\nDic - 24","Medición del indicador"]
[null,null,null,null,null,null,null,null,null,null,null,null,"Implementar acciones según los resultados","Proceso Dialogando con el Mundo","Recurso Humano\nMicrosoft Office 365","Según la necesidad","Ficha técnica de indicador - Acción formulada"]
[null,null,null,null,null,null,"Lograr la implementación de los convenios de investigación conjunta internacional firmados.","Convenios de Investigación Conjunta firmados","Número de Convenios legalizados correspondientes a investigación conjunta trabajados desde REDLUT","Eficacia","Semestral",6,"Articular con la comunidad internacional la firma del convenio","Proceso Dialogando con el Mundo\nDirección de Ciencia, Tecnología e Innovación\nDirección Jurídica","Recurso Humano\nMicrosoft Office 365","Inicio de:\nIPA 2024\nIIPA 2024","Grabación mesas de trabajo\nCorreos que incluyen los documentos para la legalización de los convenios ",null,null,null,"MDM-5"]
[null,null,null,null,null,null,null,null,null,null,null,null,"Socializar con los Decanos y los Gestores de Conocimiento y el aprendizaje, los convenios en curso.","Proceso Dialogando con el Mundo\nDirección de Ciencia, Tecnología e Innovación\nLíderes de los grupos de investigación","Recurso Humano\nMicrosoft Office 365","IPA 2024\nIIPA 2024","Actas de los grupos de investigación"]
[null,null,null,null,null,null,null,null,null,null,null,null,"Acompañar a los Docentes de Internacionalización de cada programa, con los proyectos de investigación que estén activos.","Proceso Dialogando con el Mundo\nDirección de Ciencia, Tecnología e Innovación","Recurso Humano\nMicrosoft Office 365","IPA 2024\nIIPA 2024","Grabaciones de las reuniones."]
[null,null,null,null,null,null,null,null,null,null,null,null,"Medir los resultados de los Convenios de Investigación Conjunta firmados","Proceso Dialogando con el Mundo","Recurso Humano\nMicrosoft Office 365","Jun - 24\nDic - 24","Medición del indicador"]
[null,null,null,null,null,null,null,null,null,null,null,null,"Implementar acciones según los resultados","Proceso Dialogando con el Mundo","Recurso Humano\nMicrosoft Office 365","Según la necesidad","Ficha técnica de indicador - Acción formulada"]
[]
[]
[]
[]
[null,"Diagonal 18 No. 20-29 Fusagasugá – Cundinamarca\nTeléfono (601)  8281483 Línea Gratuita 018000180414\nwww.ucundinamarca.edu.co   E-mail:  info@ucundinamarca.edu.co\nNIT: 890.680.062-2                                                                             "]
[null,"Documento controlado por el Sistema de Gestión de la Calidad\nAsegúrese que corresponde a la última versión consultando el Portal Institucional"]
[]
[]
[]
[]
[]
[]
[]
[]
[null,null,"LINEAMIENTOS DE LA POLÍTICA DE CALIDAD","OBJETIVOS DE CALIDAD","ALINEACIÓN DE LOS INDICADORES CON LOS DOCUMENTOS ESTRATÉGICOS Y LOS OBJETIVOS DE CALIDAD"]
[null,null,"LINEAMIENTOS DE LA POLÍTICA DE SEGURIDAD Y SALUD EN EL TRABAJO","OBJETIVOS DE SEGURIDAD Y SALUD EN EL TRABAJO","ALINEACIÓN DE LOS INDICADORES CON LOS DOCUMENTOS ESTRATÉGICOS Y LOS OBJETIVOS DE SEGURIDAD Y SALUD EN EL TRABAJO"]
[null,null,"LINEAMIENTOS DE LA POLÍTICA DE AMBIENTAL","OBJETIVOS DE AMBIENTAL","ALINEACIÓN DE LOS INDICADORES CON LOS DOCUMENTOS ESTRATÉGICOS Y LOS OBJETIVOS DE AMBIENTAL"]
[null,null,"LINEAMIENTOS DE LA POLÍTICA DE SEGURIDAD DE LA INFORMACIÓN","OBJETIVOS DE SEGURIDAD DE LA INFORMACIÓN","ALINEACIÓN DE LOS INDICADORES CON LOS DOCUMENTOS ESTRATÉGICOS Y LOS OBJETIVOS DE SEGURIDAD DE LA INFORMACIÓN"]
[null,null,"LINEAMIENTOS DE LA POLÍTICA DE SEGURIDAD DE ANTISOBORNO","OBJETIVOS DE SEGURIDAD DE ANTISOBORNO","ALINEACIÓN DE LOS INDICADORES CON LOS DOCUMENTOS ESTRATÉGICOS Y LOS OBJETIVOS DE SEGURIDAD DE ANTISOBORNO"]
[null,null,"LINEAMIENTOS DE LA POLÍTICA DE LA CONCILIACIÓN DE LA VIDA PERSONAL, FAMILIAR Y LABORAL","OBJETIVOS DE LA CONCILIACIÓN DE LA VIDA PERSONAL, FAMILIAR Y LABORAL","ALINEACIÓN DE LOS INDICADORES CON LOS DOCUMENTOS ESTRATÉGICOS Y LOS OBJETIVOS DE LA CONCILIACIÓN DE LA VIDA PERSONAL, FAMILIAR Y LABORAL"]

{"sheet":"MDM-1","index":1,"n_rows":97,"n_cols":15,"rows_kept":97,"cut":false,"hidden":false,"merged":[[58,2,58,5],[58,6,58,9],[58,10,58,14],[55,2,55,5],[56,10,56,14],[56,2,56,5],[57,6,57,9],[57,10,57,14],[57,2,57,5],[54,2,54,5],[56,6,56,9],[54,10,54,14],[55,6,55,9],[55,10,55,14],[54,6,54,9],[52,2,52,5],[52,6,52,9],[52,10,52,14],[53,2,53,5],[53,6,53,9],[53,10,53,14],[51,2,51,5],[51,6,51,9],[51,10,51,14],[26,15,27,15],[27,9,31,14],[32,9,32,14],[39,9,39,14],[40,9,40,14],[43,2,43,14],[45,2,46,2],[45,3,46,3],[45,4,46,4],[50,2,50,14],[33,9,37,14],[38,9,38,14],[22,13,23,14],[23,2,23,3],[23,4,23,6],[25,2,25,14],[26,2,41,8],[26,9,26,14],[41,9,41,14],[22,2,22,3],[22,4,22,6],[22,7,23,8],[22,9,23,10],[22,11,23,12],[19,2,21,3],[19,4,21,6],[19,7,21,8],[19,9,21,10],[19,11,19,14],[16,15,17,15],[17,2,18,3],[17,4,17,5],[17,6,18,10],[17,11,18,12],[17,13,18,14],[18,4,18,5],[16,2,16,3],[16,4,16,6],[16,7,16,8],[16,9,16,10],[16,11,16,12],[16,13,16,14],[15,2,15,14],[8,2,8,14],[9,2,10,14],[11,2,11,3],[11,4,11,7],[11,8,11,9],[11,10,11,14],[12,2,12,3],[12,4,12,14],[13,2,13,3],[13,4,13,14],[14,2,14,14],[1,1,3,2],[4,2,7,3],[4,4,4,11],[4,12,4,14],[5,4,5,11],[5,12,5,14],[6,4,7,11],[6,12,6,14],[7,12,7,14]]}
[]
[null,"      REGRESAR"]
[]
[]
[null,null,null,null,"MACROPROCESO ESTRATÉGICO",null,null,null,null,null,null,null,"CÓDIGO: ESGr027"]
[null,null,null,null,"PROCESO GESTIÓN SISTEMAS INTEGRADOS",null,null,null,null,null,null,null,"VERSIÓN: 8"]
[null,null,null,null,"MATRIZ DE MEDICIÓN Y SEGUIMIENTO A LOS PROCESOS DE GESTIÓN",null,null,null,null,null,null,null,"VIGENCIA: 2023-07-28"]
[null,null,null,null,null,null,null,null,null,null,null,null,"PÁGINA: 2 de 6"]
[]
[null,null,"FICHA DE INDICADOR"]
[]
[null,null,"MACROPROCESO",null,"Misional",null,null,null,"NOMBRE DEL INDICADOR",null,"Estudiantes beneficiados con la implementación de la acción estratégica de movilidad académica y alianzas correspondiente a la política Dialogando con el Mundo."]
[null,null,"PROCESO GESTIÓN",null,"Dialogando con el Mundo"]
[null,null,"RESPONSABLE DE MEDICIÓN",null,"Vicerrectoría Académica"]
[]
[null,null,"1. COMPORTAMIENTO DE INDICADOR"]
[null,null,"CLASIFICACIÓN DE LA MEDICIÓN",null,2,null,null,"TIPO DE INDICADOR",null,"Eficacia",null,"META ANUAL",null,120]
[null,null,"FÓRMULA",null,"NUMERADOR",null,"Número de movilizaciones realizadas para estudiantes de 5 a 10 semestre.",null,null,null,null,"UNIDAD DE MEDIDA",null,"Número de movilizaciones realizadas"]
[null,null,null,null,"DENOMINADOR"]
[null,null,"TENDENCIA",null,"Positiva",null,null,"NIVEL DE SEGREGACIÓN *",null,"Otros",null,"ESCALA"]
[null,null,null,null,null,null,null,null,null,null,null,"Deficiente","Aceptable","Bueno","Excelente"]
[null,null,null,null,null,null,null,null,null,null,null,"0 a 69","70 a 94","95 a 120",">120"]
[null,null,"ORIGEN DE DATOS NUMERADOR",null,"Consolidado de estudiantes beneficiados",null,null,"FRECUENCIA DE LA MEDICIÓN",null,"SEMESTRAL",null,"FRECUENCIA DE \nRESULTADO",null,"ANUAL"]
[null,null,"ORIGEN DE DATOS DENOMINADOR",null,"Consolidado de estudiantes beneficiados"]
[]
[null,null,"RESULTADOS"]
[null,null,null,null,null,null,null,null,null,"ANÁLISIS DE DATOS"]
[null,null,null,null,null,null,null,null,null,"II SEMESTRE\nPara el período 2024-2 se realizaron 42 movilidades salientes y 48 movilidades entrantes correspondientes a los programas de Estudiante Embajador, Casa Cundinamarca y Voluntariado Internacional para un total de 123 movilidades académicas realizadas, que se incrementaron respecto al periodo academico inmediatamente anterior llevando por buen rumbo la movilidad referente a la meta pactada para el presente año, esto se logró gracias a la implementacion de acciones estratégicas y alianzas referentes a la poíitica Dialogando con el Mundo como la realización de voluntariado internacional en cada semestre."]
[]
[]
[]
[]
[null,null,null,null,null,null,null,null,null,"ACCIÓN FORMULADA"]
[null,null,null,null,null,null,null,null,null,"II SEMESTRE \nEn el período 2024-2 se articularon las estrategias del Modelo Educativo Digital Transmoderno, por el cual la Universidad de Cundinamarca se define como translocal, con el fin de hacer énfasis en su identidad como universidad pública, de entender desde su contexto departamental su realidad frente a la globalidad.                                                                                                                                                                                                             Atendiendo dicha actividad, la politica Dialogando con el Mundo busca incentivar a estudiantespara que realicen actividades de movilidad académica internacional, promoviendo beneficios a partir del intercambio de saberes con otras universidades del orden nacional e internacional, como es el caso de los voluntariados.                                                              "]
[]
[]
[]
[]
[]
[null,null,null,null,null,null,null,null,null,"RESPONSABLE "]
[null,null,null,null,null,null,null,null,null,{"$f":"E14","v":"Vicerrectoría Académica"}]
[]
[]
[null,null,"PERIODO DE EVALUACIÓN"]
[null,null,"MES",{"$f":"IF(J23=\"MENSUAL\",\"ENERO\",IF(J23=\"TRIMESTRAL\",\"MARZO\",IF(J23=\"SEMESTRAL\",\"JUNIO\",IF(J23=\"ANUAL\",YEAR(TODAY()),\"\"))))","v":"JUNIO"},{"$f":"IF(J23=\"MENSUAL\",\"FEBRERO\",IF(J23=\"TRIMESTRAL\",\"JUNIO\",IF(J23=\"SEMESTRAL\",\"DICIEMBRE\",\"\")))","v":"DICIEMBRE"},{"$f":"IF(J23=\"MENSUAL\",\"MARZO\",IF(J23=\"TRIMESTRAL\",\"SEPTIEMBRE\",\"\"))","v":""},{"$f":"IF(J23=\"MENSUAL\",\"ABRIL\",IF(J23=\"TRIMESTRAL\",\"DICIEMBRE\",\"\"))","v":""},{"$f":"IF(J23=\"MENSUAL\",\"MAYO\",\"\")","v":""},{"$f":"IF(J23=\"MENSUAL\",\"JUNIO\",\"\")","v":""},{"$f":"IF(J23=\"MENSUAL\",\"JULIO\",\"\")","v":""},{"$f":"IF(J23=\"MENSUAL\",\"AGOSTO\",\"\")","v":""},{"$f":"IF(J23=\"MENSUAL\",\"SEPTIEMBRE\",\"\")","v":""},{"$f":"IF(J23=\"MENSUAL\",\"OCTUBRE\",\"\")","v":""},{"$f":"IF(J23=\"MENSUAL\",\"NOVIEMBRE\",\"\")","v":""},{"$f":"IF(J23=\"MENSUAL\",\"DICIEMBRE\",\"\")","v":""}]
[null,null,{"$f":"G18","v":"Número de movilizaciones realizadas para estudiantes de 5 a 10 semestre."},101,123]
[]
[null,null,"VALOR ",{"$f":"D46","v":101},{"$f":"E46","v":123},{"$f":"IFERROR(IF($E$17=1,F46/F47,IF($E$17=2,F46,\"\")),\"\")","v":0},0,0,0,0,0,0,0,0,0]
[null,null,"META PONDERADA",60,{"$f":"IF(AND(N23=\"ANUAL\",J23=\"MENSUAL\"),N17/12+D49,IF(AND(N23=\"ANUAL\",J23=\"TRIMESTRAL\"),N17/4+D49,IF(AND(N23=\"ANUAL\",J23=\"SEMESTRAL\"),N17/2+D49,IF(AND(N23=\"SEMESTRAL\",J23=\"MENSUAL\"),N17/6+D49,IF(AND(N23=\"SEMESTRAL\",J23=\"TRIMESTRAL\"),N17/2+D49,IF(AND(N23=\"SEMESTRAL\",J23=\"SEMESTRAL\"),N17,IF(AND(N23=\"TRIMESTRAL\",J23=\"MENSUAL\"),N17/3+D49,IF(AND(N23=\"TRIMESTRAL\",J23=\"TRIMESTRAL\"),N17,IF(AND(N23=\"MENSUAL\",J23=\"MENSUAL\"),N17,\"\")))))))))","v":120},{"$f":"IF(AND(N23=\"ANUAL\",J23=\"MENSUAL\"),N17/12+E49,IF(AND(N23=\"ANUAL\",J23=\"TRIMESTRAL\"),N17/4+E49,IF(AND(N23=\"SEMESTRAL\",J23=\"MENSUAL\"),N17/6+E49,IF(AND(N23=\"SEMESTRAL\",J23=\"TRIMESTRAL\"),N17/2,IF(AND(N23=\"TRIMESTRAL\",J23=\"MENSUAL\"),N17/3+E49,IF(AND(N23=\"TRIMESTRAL\",J23=\"TRIMESTRAL\"),N17,IF(AND(N23=\"MENSUAL\",J23=\"MENSUAL\"),N17,\"\")))))))","v":""},{"$f":"IF(AND(N23=\"ANUAL\",J23=\"MENSUAL\"),N17/12+F49,IF(AND(N23=\"ANUAL\",J23=\"TRIMESTRAL\"),N17/4+F49,IF(AND(N23=\"SEMESTRAL\",J23=\"MENSUAL\"),N17/6+F49,IF(AND(N23=\"SEMESTRAL\",J23=\"TRIMESTRAL\"),N17/2+F49,IF(AND(N23=\"TRIMESTRAL\",J23=\"MENSUAL\"),N17/3,IF(AND(N23=\"TRIMESTRAL\",J23=\"TRIMESTRAL\"),N17,IF(AND(N23=\"MENSUAL\",J23=\"MENSUAL\"),N17,\"\")))))))","v":""},{"$f":"IF(AND($N$23=\"ANUAL\",$J$23=\"MENSUAL\"),$N$17/12+G49,IF(AND(N23=\"SEMESTRAL\",J23=\"MENSUAL\"),N17/6+G49,IF(AND(N23=\"TRIMESTRAL\",J23=\"MENSUAL\"),N17/3+G49,IF(AND(N23=\"MENSUAL\",J23=\"MENSUAL\"),N17,\"\"))))","v":""},{"$f":"IF(AND($N$23=\"ANUAL\",$J$23=\"MENSUAL\"),$N$17/12+H49,IF(AND(N23=\"SEMESTRAL\",J23=\"MENSUAL\"),N17/6+H49,IF(AND(N23=\"TRIMESTRAL\",J23=\"MENSUAL\"),N17/3+H49,IF(AND(N23=\"MENSUAL\",J23=\"MENSUAL\"),N17,\"\"))))","v":""},{"$f":"IF(AND($N$23=\"ANUAL\",$J$23=\"MENSUAL\"),$N$17/12+I49,IF(AND(N23=\"SEMESTRAL\",J23=\"MENSUAL\"),N17/6,IF(AND(N23=\"TRIMESTRAL\",J23=\"MENSUAL\"),N17/3,IF(AND(N23=\"MENSUAL\",J23=\"MENSUAL\"),N17,\"\"))))","v":""},{"$f":"IF(AND($N$23=\"ANUAL\",$J$23=\"MENSUAL\"),$N$17/12+J49,IF(AND(N23=\"SEMESTRAL\",J23=\"MENSUAL\"),N17/6+J49,IF(AND(N23=\"TRIMESTRAL\",J23=\"MENSUAL\"),N17/3+J49,IF(AND(N23=\"MENSUAL\",J23=\"MENSUAL\"),N17,\"\"))))","v":""},{"$f":"IF(AND($N$23=\"ANUAL\",$J$23=\"MENSUAL\"),$N$17/12+K49,IF(AND(N23=\"SEMESTRAL\",J23=\"MENSUAL\"),N17/6+K49,IF(AND(N23=\"TRIMESTRAL\",J23=\"MENSUAL\"),N17/3+K49,IF(AND(N23=\"MENSUAL\",J23=\"MENSUAL\"),N17,\"\"))))","v":""},{"$f":"IF(AND($N$23=\"ANUAL\",$J$23=\"MENSUAL\"),$N$17/12+L49,IF(AND(N23=\"SEMESTRAL\",J23=\"MENSUAL\"),N17/6+L49,IF(AND(N23=\"TRIMESTRAL\",J23=\"MENSUAL\"),N17/3,IF(AND(N23=\"MENSUAL\",J23=\"MENSUAL\"),N17,\"\"))))","v":""},{"$f":"IF(AND($N$23=\"ANUAL\",$J$23=\"MENSUAL\"),$N$17/12+M49,IF(AND(N23=\"SEMESTRAL\",J23=\"MENSUAL\"),N17/6+M49,IF(AND(N23=\"TRIMESTRAL\",J23=\"MENSUAL\"),N17/3+M49,IF(AND(N23=\"MENSUAL\",J23=\"MENSUAL\"),N17,\"\"))))","v":""},{"$f":"IF(AND($N$23=\"ANUAL\",$J$23=\"MENSUAL\"),$N$17/12+N49,IF(AND(N23=\"SEMESTRAL\",J23=\"MENSUAL\"),N17/6+N49,IF(AND(N23=\"TRIMESTRAL\",J23=\"MENSUAL\"),N17/3+N49,IF(AND(N23=\"MENSUAL\",J23=\"MENSUAL\"),N17,\"\"))))","v":""}]
[]
[null,null,"NIVEL DE SEGREGACIÓN *"]
[null,null,"UNIDAD SEGREGADA (Ej. Facultad, Programa Académico, Área)",null,null,null,"RESULTADO",null,null,null,"ANÁLISIS DE DATOS SEGREGADO"]
[null,null,"Casa Cundinamarca saliente",null,null,null,25]
[null,null,"Estudiante Embajador saliente",null,null,null,87]
[null,null,"Voluntariado saliente",null,null,null,24]
[null,null,"Estudiante Embajador entrante",null,null,null,44]
[null,null,"Voluntariado entrante",null,null,null,43]
[null,null,"Casa Cundinamarca entrante",null,null,null,1]
[]
[]
[]
[]
[]
[]
[]
[]
[]
[]
[]
[]
[null,null,null,null,null,null,"Estratégico",null,null,"Eficacia"]
[null,null,null,null,null,null,"Misional",null,null,"Eficiencia"]
[null,null,null,null,null,null,"Apoyo",null,null,"Acreditación"]
[null,null,null,null,null,null,"Seguimiento, Medición, Análisis y Evaluación",null,null,"Positiva"]
[null,null,null,null,null,null,"Direccionamiento Estratégico",null,null,"Negativa"]
[null,null,null,null,null,null,"Planeación Institucional",null,null,"Por Unidad Regional"]
[null,null,null,null,null,null,"Proyectos Especiales y Relaciones Interinstitucionales",null,null,"Por Facultad"]
[null,null,null,null,null,null,"Sistemas Integrados",null,null,"Por Programa Académico"]
[null,null,null,null,null,null,"Autoevaluación y Acreditación",null,null,"Por área"]
[null,null,null,null,null,null,"Comunicaciones",null,null,"Por Laboratorio"]
[null,null,null,null,null,null,"Formación y Aprendizaje",null,null,"Otros"]
[null,null,null,null,null,null,"Ciencia, Tecnología e Innovación",null,null,"No Aplica"]
[null,null,null,null,null,null,"Interacción Social Universitaria"]
[null,null,null,null,null,null,"Bienestar Universitario"]
[null,null,null,null,null,null,"Admisiones y Registro"]
[null,null,null,null,null,null,"Graduados"]
[null,null,null,null,null,null,"Dialogando con el Mundo"]
[null,null,null,null,null,null,"Talento Humano"]
[null,null,null,null,null,null,"Jurídica"]
[null,null,null,null,null,null,"Financiera"]
[null,null,null,null,null,null,"Sistemas y Tecnología"]
[null,null,null,null,null,null,"Bienes y Servicios"]
[null,null,null,null,null,null,"Documental"]
[null,null,null,null,null,null,"Apoyo Académico"]
[null,null,null,null,null,null,"Control Interno"]
[null,null,null,null,null,null,"Control Disciplinario"]
[null,null,null,null,null,null,"Servicio de Atención al Ciudadano"]

{"sheet":"MDM-3 ","index":2,"n_rows":98,"n_cols":15,"rows_kept":98,"cut":false,"hidden":false,"merged":[[58,2,58,5],[58,6,58,9],[58,10,58,14],[59,2,59,5],[59,6,59,9],[59,10,59,14],[56,2,56,5],[56,6,56,9],[56,10,56,14],[57,2,57,5],[57,6,57,9],[57,10,57,14],[54,2,54,5],[54,6,54,9],[54,10,54,14],[55,2,55,5],[55,6,55,9],[55,10,55,14],[53,2,53,5],[53,6,53,9],[53,10,53,14],[26,15,27,15],[27,9,32,14],[33,9,33,14],[34,9,39,14],[40,9,40,14],[41,9,41,14],[44,2,44,14],[51,2,51,14],[52,2,52,5],[52,6,52,9],[52,10,52,14],[22,13,23,14],[23,2,23,3],[23,4,23,6],[25,2,25,14],[26,2,42,8],[26,9,26,14],[42,9,42,14],[22,2,22,3],[22,4,22,6],[22,7,23,8],[22,9,23,10],[22,11,23,12],[19,2,21,3],[19,4,21,6],[19,7,21,8],[19,9,21,10],[19,11,19,14],[16,15,17,15],[17,2,18,3],[17,4,17,5],[17,6,17,10],[17,11,18,12],[17,13,18,14],[18,4,18,5],[18,6,18,10],[16,2,16,3],[16,4,16,6],[16,7,16,8],[16,9,16,10],[16,11,16,12],[16,13,16,14],[15,2,15,14],[8,2,8,14],[9,2,10,14],[11,2,11,3],[11,4,11,7],[11,8,11,9],[11,10,11,14],[12,2,12,3],[12,4,12,14],[13,2,13,3],[13,4,13,14],[14,2,14,14],[1,1,3,2],[4,2,7,3],[4,4,4,11],[4,12,4,14],[5,4,5,11],[5,12,5,14],[6,4,7,11],[6,12,6,14],[7,12,7,14]]}
[]
[null,"      REGRESAR"]
[]
[]
[null,null,null,null,"MACROPROCESO ESTRATÉGICO",null,null,null,null,null,null,null,"CÓDIGO: ESGr027"]
[null,null,null,null,"PROCESO GESTIÓN SISTEMAS INTEGRADOS",null,null,null,null,null,null,null,"VERSIÓN: 8"]
[null,null,null,null,"MATRIZ DE MEDICIÓN Y SEGUIMIENTO A LOS PROCESOS DE GESTIÓN",null,null,null,null,null,null,null,"VIGENCIA: 2023-07-28"]
[null,null,null,null,null,null,null,null,null,null,null,null,"PÁGINA: 3 de 6"]
[]
[null,null,"FICHA DE INDICADOR"]
[]
[null,null,"MACROPROCESO",null,"Misional",null,null,null,"NOMBRE DEL INDICADOR",null,"Dinamizar Convenios"]
[null,null,"PROCESO GESTIÓN",null,"Dialogando con el Mundo"]
[null,null,"RESPONSABLE DE MEDICIÓN",null,"Vicerrectoría Académica"]
[]
[null,null,"1. COMPORTAMIENTO DE INDICADOR"]
[null,null,"CLASIFICACIÓN DE LA MEDICIÓN",null,1,null,null,"TIPO DE INDICADOR",null,"Eficacia",null,"META ANUAL",null,0.6]
[null,null,"FÓRMULA",null,"NUMERADOR",null,"Número de convenios en ejecución*100",null,null,null,null,"UNIDAD DE MEDIDA",null,"Porcentual"]
[null,null,null,null,"DENOMINADOR",null,"Número de convenios internacionales vigentes en la UDEC "]
[null,null,"TENDENCIA",null,"Positiva",null,null,"NIVEL DE SEGREGACIÓN *",null,"No Aplica",null,"ESCALA"]
[null,null,null,null,null,null,null,null,null,null,null,"Deficiente","Aceptable","Bueno","Excelente"]
[null,null,null,null,null,null,null,null,null,null,null,"0% - 44.9%","45% - 54.9%","55% - 60%",">60%"]
[null,null,"ORIGEN DE DATOS NUMERADOR",null,"Consolidado de convenios",null,null,"FRECUENCIA DE LA MEDICIÓN",null,"SEMESTRAL",null,"FRECUENCIA DE RESULTADO",null,"ANUAL"]
[null,null,"ORIGEN DE DATOS DENOMINADOR",null,"Consolidado de convenios"]
[]
[null,null,"RESULTADOS"]
[null,null,null,null,null,null,null,null,null,"ANÁLISIS DE DATOS"]
[null,null,null,null,null,null,null,null,null,"II SEMESTRE\nDurante el periodo 2024-2, se estableció contacto con las universidades internacionales con el propósito de dar continuidad a los programas de movilidad. Sin embargo, varias instituciones manifestaron su reticencia a continuar debido a los inconvenientes presentados y a la falta de comunicación oportuna."]
[]
[]
[]
[]
[]
[null,null,null,null,null,null,null,null,null,"ACCIÓN FORMULADA"]
[null,null,null,null,null,null,null,null,null,"II SEMESTRE\nDurante el periodo 2024-2, se logró restablecer la cooperación con las instituciones internacionales con las cuales se tienen convenios vigentes. Se llevó a cabo una depuración de los convenios activos y se inició el proceso de renovación de aquellos vencidos. Como resultado, se estableció un nuevo convenio y se encuentran en proceso de firma tres más.\nAdicionalmente, la Universidad participa activamente en el programa PILA, el cual facilita la movilidad y la cooperación interinstitucional. Estas estrategias buscan posicionar a la Universidad como un destino y una experiencia educativa atractiva, fomentando pasantías y espacios de aprendizaje para estudiantes extranjeros.\nPara fortalecer esta proyección se gestionaron eventos internacionales como webinars y aulas espejo. Estas actividades contribuyen a dinamizar tanto los convenios marco como los específicos de movilidad internacional, consolidando la cooperación con las universidades internacionales."]
[]
[]
[]
[]
[]
[null,null,null,null,null,null,null,null,null,"RESPONSABLE "]
[null,null,null,null,null,null,null,null,null,{"$f":"E14","v":"Vicerrectoría Académica"}]
[]
[]
[null,null,"PERIODO DE EVALUACIÓN"]
[null,null,"MES",{"$f":"IF(J23=\"MENSUAL\",\"ENERO\",IF(J23=\"TRIMESTRAL\",\"MARZO\",IF(J23=\"SEMESTRAL\",\"JUNIO\",IF(J23=\"ANUAL\",YEAR(TODAY()),\"\"))))","v":"JUNIO"},{"$f":"IF(J23=\"MENSUAL\",\"FEBRERO\",IF(J23=\"TRIMESTRAL\",\"JUNIO\",IF(J23=\"SEMESTRAL\",\"DICIEMBRE\",\"\")))","v":"DICIEMBRE"},{"$f":"IF(J23=\"MENSUAL\",\"MARZO\",IF(J23=\"TRIMESTRAL\",\"SEPTIEMBRE\",\"\"))","v":""},{"$f":"IF(J23=\"MENSUAL\",\"ABRIL\",IF(J23=\"TRIMESTRAL\",\"DICIEMBRE\",\"\"))","v":""},{"$f":"IF(J23=\"MENSUAL\",\"MAYO\",\"\")","v":""},{"$f":"IF(J23=\"MENSUAL\",\"JUNIO\",\"\")","v":""},{"$f":"IF(J23=\"MENSUAL\",\"JULIO\",\"\")","v":""},{"$f":"IF(J23=\"MENSUAL\",\"AGOSTO\",\"\")","v":""},{"$f":"IF(J23=\"MENSUAL\",\"SEPTIEMBRE\",\"\")","v":""},{"$f":"IF(J23=\"MENSUAL\",\"OCTUBRE\",\"\")","v":""},{"$f":"IF(J23=\"MENSUAL\",\"NOVIEMBRE\",\"\")","v":""},{"$f":"IF(J23=\"MENSUAL\",\"DICIEMBRE\",\"\")","v":""}]
[null,null,{"$f":"G18","v":"Número de convenios en ejecución*100"},16,12]
[null,null,{"$f":"G19","v":"Número de convenios internacionales vigentes en la UDEC "},56,57]
[null,null,"VALOR ",{"$f":"IFERROR(IF($E$17=1,D47/D48,IF($E$17=2,D47,\"\")),\"\")","v":0.2857142857142857},{"$f":"IFERROR(IF($E$17=1,E47/E48,IF($E$17=2,E47,\"\")),\"\")","v":0.21052631578947367},{"$f":"IFERROR(IF($E$17=1,F47/F48,IF($E$17=2,F47,\"\")),\"\")","v":""},"","","","","","","","",""]
[null,null,"META PONDERADA",{"$f":"IF(AND(N23=\"ANUAL\",J23=\"MENSUAL\"),N17/12,IF(AND(N23=\"ANUAL\",J23=\"TRIMESTRAL\"),N17/4,IF(AND(N23=\"ANUAL\",J23=\"SEMESTRAL\"),N17/2,IF(AND(N23=\"ANUAL\",J23=\"ANUAL\"),N17,IF(AND(N23=\"SEMESTRAL\",J23=\"MENSUAL\"),N17/6,IF(AND(N23=\"SEMESTRAL\",J23=\"TRIMESTRAL\"),N17/2,IF(AND(N23=\"SEMESTRAL\",J23=\"SEMESTRAL\"),N17,IF(AND(N23=\"SEMESTRAL\",J23=\"ANUAL\"),\"REVISAR FRECUENCIAS\",IF(AND(N23=\"TRIMESTRAL\",J23=\"MENSUAL\"),N17/3,IF(AND(N23=\"TRIMESTRAL\",J23=\"TRIMESTRAL\"),N17,IF(AND(N23=\"TRIMESTRAL\",J23=\"SEMESTRAL\"),\"REVISAR FRECUENCIAS\",IF(AND(N23=\"TRIMESTRAL\",J23=\"ANUAL\"),\"REVISAR FRECUENCIAS\",IF(AND(N23=\"MENSUAL\",J23=\"MENSUAL\"),N17,IF(AND(N23=\"MENSUAL\",J23=\"TRIMESTRAL\"),\"REVISAR FRECUENCIAS\",IF(AND(N23=\"MENSUAL\",J23=\"SEMESTRAL\"),\"REVISAR FRECUENCIAS\",IF(AND(N23=\"MENSUAL\",J23=\"ANUAL\"),\"REVISAR FRECUENCIAS\",\"\"))))))))))))))))","v":0.3},{"$f":"IF(AND(N23=\"ANUAL\",J23=\"MENSUAL\"),N17/12+D50,IF(AND(N23=\"ANUAL\",J23=\"TRIMESTRAL\"),N17/4+D50,IF(AND(N23=\"ANUAL\",J23=\"SEMESTRAL\"),N17/2+D50,IF(AND(N23=\"SEMESTRAL\",J23=\"MENSUAL\"),N17/6+D50,IF(AND(N23=\"SEMESTRAL\",J23=\"TRIMESTRAL\"),N17/2+D50,IF(AND(N23=\"SEMESTRAL\",J23=\"SEMESTRAL\"),N17,IF(AND(N23=\"TRIMESTRAL\",J23=\"MENSUAL\"),N17/3+D50,IF(AND(N23=\"TRIMESTRAL\",J23=\"TRIMESTRAL\"),N17,IF(AND(N23=\"MENSUAL\",J23=\"MENSUAL\"),N17,\"\")))))))))","v":0.6},{"$f":"IF(AND(N23=\"ANUAL\",J23=\"MENSUAL\"),N17/12+E50,IF(AND(N23=\"ANUAL\",J23=\"TRIMESTRAL\"),N17/4+E50,IF(AND(N23=\"SEMESTRAL\",J23=\"MENSUAL\"),N17/6+E50,IF(AND(N23=\"SEMESTRAL\",J23=\"TRIMESTRAL\"),N17/2,IF(AND(N23=\"TRIMESTRAL\",J23=\"MENSUAL\"),N17/3+E50,IF(AND(N23=\"TRIMESTRAL\",J23=\"TRIMESTRAL\"),N17,IF(AND(N23=\"MENSUAL\",J23=\"MENSUAL\"),N17,\"\")))))))","v":""},{"$f":"IF(AND(N23=\"ANUAL\",J23=\"MENSUAL\"),N17/12+F50,IF(AND(N23=\"ANUAL\",J23=\"TRIMESTRAL\"),N17/4+F50,IF(AND(N23=\"SEMESTRAL\",J23=\"MENSUAL\"),N17/6+F50,IF(AND(N23=\"SEMESTRAL\",J23=\"TRIMESTRAL\"),N17/2+F50,IF(AND(N23=\"TRIMESTRAL\",J23=\"MENSUAL\"),N17/3,IF(AND(N23=\"TRIMESTRAL\",J23=\"TRIMESTRAL\"),N17,IF(AND(N23=\"MENSUAL\",J23=\"MENSUAL\"),N17,\"\")))))))","v":""},{"$f":"IF(AND($N$23=\"ANUAL\",$J$23=\"MENSUAL\"),$N$17/12+G50,IF(AND(N23=\"SEMESTRAL\",J23=\"MENSUAL\"),N17/6+G50,IF(AND(N23=\"TRIMESTRAL\",J23=\"MENSUAL\"),N17/3+G50,IF(AND(N23=\"MENSUAL\",J23=\"MENSUAL\"),N17,\"\"))))","v":""},{"$f":"IF(AND($N$23=\"ANUAL\",$J$23=\"MENSUAL\"),$N$17/12+H50,IF(AND(N23=\"SEMESTRAL\",J23=\"MENSUAL\"),N17/6+H50,IF(AND(N23=\"TRIMESTRAL\",J23=\"MENSUAL\"),N17/3+H50,IF(AND(N23=\"MENSUAL\",J23=\"MENSUAL\"),N17,\"\"))))","v":""},{"$f":"IF(AND($N$23=\"ANUAL\",$J$23=\"MENSUAL\"),$N$17/12+I50,IF(AND(N23=\"SEMESTRAL\",J23=\"MENSUAL\"),N17/6,IF(AND(N23=\"TRIMESTRAL\",J23=\"MENSUAL\"),N17/3,IF(AND(N23=\"MENSUAL\",J23=\"MENSUAL\"),N17,\"\"))))","v":""},{"$f":"IF(AND($N$23=\"ANUAL\",$J$23=\"MENSUAL\"),$N$17/12+J50,IF(AND(N23=\"SEMESTRAL\",J23=\"MENSUAL\"),N17/6+J50,IF(AND(N23=\"TRIMESTRAL\",J23=\"MENSUAL\"),N17/3+J50,IF(AND(N23=\"MENSUAL\",J23=\"MENSUAL\"),N17,\"\"))))","v":""},{"$f":"IF(AND($N$23=\"ANUAL\",$J$23=\"MENSUAL\"),$N$17/12+K50,IF(AND(N23=\"SEMESTRAL\",J23=\"MENSUAL\"),N17/6+K50,IF(AND(N23=\"TRIMESTRAL\",J23=\"MENSUAL\"),N17/3+K50,IF(AND(N23=\"MENSUAL\",J23=\"MENSUAL\"),N17,\"\"))))","v":""},{"$f":"IF(AND($N$23=\"ANUAL\",$J$23=\"MENSUAL\"),$N$17/12+L50,IF(AND(N23=\"SEMESTRAL\",J23=\"MENSUAL\"),N17/6+L50,IF(AND(N23=\"TRIMESTRAL\",J23=\"MENSUAL\"),N17/3,IF(AND(N23=\"MENSUAL\",J23=\"MENSUAL\"),N17,\"\"))))","v":""},{"$f":"IF(AND($N$23=\"ANUAL\",$J$23=\"MENSUAL\"),$N$17/12+M50,IF(AND(N23=\"SEMESTRAL\",J23=\"MENSUAL\"),N17/6+M50,IF(AND(N23=\"TRIMESTRAL\",J23=\"MENSUAL\"),N17/3+M50,IF(AND(N23=\"MENSUAL\",J23=\"MENSUAL\"),N17,\"\"))))","v":""},{"$f":"IF(AND($N$23=\"ANUAL\",$J$23=\"MENSUAL\"),$N$17/12+N50,IF(AND(N23=\"SEMESTRAL\",J23=\"MENSUAL\"),N17/6+N50,IF(AND(N23=\"TRIMESTRAL\",J23=\"MENSUAL\"),N17/3+N50,IF(AND(N23=\"MENSUAL\",J23=\"MENSUAL\"),N17,\"\"))))","v":""}]
[]
[null,null,"NIVEL DE SEGREGACIÓN *"]
[null,null,"UNIDAD SEGREGADA (Ej. Facultad, Programa Académico, Área)",null,null,null,"RESULTADO",null,null,null,"ANÁLISIS DE DATOS SEGREGADO"]
[]
[]
[]
[]
[]
[]
[]
[]
[]
[]
[]
[]
[]
[]
[]
[]
[]
[]
[null,null,null,null,null,null,"Estratégico",null,null,"Eficacia"]
[null,null,null,null,null,null,"Misional",null,null,"Eficiencia"]
[null,null,null,null,null,null,"Apoyo",null,null,"Acreditación"]
[null,null,null,null,null,null,"Seguimiento, Medición, Análisis y Evaluación",null,null,"Positiva"]
[null,null,null,null,null,null,"Direccionamiento Estratégico",null,null,"Negativa"]
[null,null,null,null,null,null,"Planeación Institucional",null,null,"Por Unidad Regional"]
[null,null,null,null,null,null,"Proyectos Especiales y Relaciones Interinstitucionales",null,null,"Por Facultad"]
[null,null,null,null,null,null,"Sistemas Integrados",null,null,"Por Programa Académico"]
[null,null,null,null,null,null,"Autoevaluación y Acreditación",null,null,"Por área"]
[null,null,null,null,null,null,"Comunicaciones",null,null,"Por Laboratorio"]
[null,null,null,null,null,null,"Formación y Aprendizaje",null,null,"Otros"]
[null,null,null,null,null,null,"Ciencia, Tecnología e Innovación",null,null,"No Aplica"]
[null,null,null,null,null,null,"Interacción Social Universitaria"]
[null,null,null,null,null,null,"Bienestar Universitario"]
[null,null,null,null,null,null,"Admisiones y Registro"]
[null,null,null,null,null,null,"Graduados"]
[null,null,null,null,null,null,"Dialogando con el Mundo"]
[null,null,null,null,null,null,"Talento Humano"]
[null,null,null,null,null,null,"Jurídica"]
[null,null,null,null,null,null,"Financiera"]
[null,null,null,null,null,null,"Sistemas y Tecnología"]
[null,null,null,null,null,null,"Bienes y Servicios"]
[null,null,null,null,null,null,"Documental"]
[null,null,null,null,null,null,"Apoyo Académico"]
[null,null,null,null,null,null,"Control Interno"]
[null,null,null,null,null,null,"Control Disciplinario"]
[null,null,null,null,null,null,"Servicio de Atención al Ciudadano"]

{"sheet":"MDM-4","index":3,"n_rows":97,"n_cols":15,"rows_kept":97,"cut":false,"hidden":false,"merged":[[58,2,58,5],[58,6,58,9],[58,10,58,14],[56,2,56,5],[56,6,56,9],[56,10,56,14],[57,2,57,5],[57,6,57,9],[57,10,57,14],[54,2,54,5],[54,6,54,9],[54,10,54,14],[55,2,55,5],[55,6,55,9],[55,10,55,14],[52,2,52,5],[52,6,52,9],[52,10,52,14],[53,2,53,5],[53,6,53,9],[53,10,53,14],[51,2,51,5],[51,6,51,9],[51,10,51,14],[26,15,27,15],[27,9,31,14],[32,9,32,14],[33,9,38,14],[39,9,39,14],[40,9,40,14],[43,2,43,14],[45,2,46,2],[45,3,46,3],[45,4,46,4],[50,2,50,14],[22,13,23,14],[23,2,23,3],[23,4,23,6],[25,2,25,14],[26,2,41,8],[26,9,26,14],[41,9,41,14],[22,2,22,3],[22,4,22,6],[22,7,23,8],[22,9,23,10],[22,11,23,12],[19,2,21,3],[19,4,21,6],[19,7,21,8],[19,9,21,10],[19,11,19,14],[16,15,17,15],[17,2,18,3],[17,4,17,5],[17,6,18,10],[17,11,18,12],[17,13,18,14],[18,4,18,5],[16,2,16,3],[16,4,16,6],[16,7,16,8],[16,9,16,10],[16,11,16,12],[16,13,16,14],[15,2,15,14],[8,2,8,14],[9,2,10,14],[11,2,11,3],[11,4,11,7],[11,8,11,9],[11,10,11,14],[12,2,12,3],[12,4,12,14],[13,2,13,3],[13,4,13,14],[14,2,14,14],[1,1,3,2],[4,2,7,3],[4,4,4,11],[4,12,4,14],[5,4,5,11],[5,12,5,14],[6,4,7,11],[6,12,6,14],[7,12,7,14]]}
[]
[null,"      REGRESAR"]
[]
[]
[null,null,null,null,"MACROPROCESO ESTRATÉGICO",null,null,null,null,null,null,null,"CÓDIGO: ESGr027"]
[null,null,null,null,"PROCESO GESTIÓN SISTEMAS INTEGRADOS",null,null,null,null,null,null,null,"VERSIÓN: 8"]
[null,null,null,null,"MATRIZ DE MEDICIÓN Y SEGUIMIENTO A LOS PROCESOS DE GESTIÓN",null,null,null,null,null,null,null,"VIGENCIA: 2023-07-28"]
[null,null,null,null,null,null,null,null,null,null,null,null,"PÁGINA: 4 de 6"]
[]
[null,null,"FICHA DE INDICADOR"]
[]
[null,null,"MACROPROCESO",null,"Misional",null,null,null,"NOMBRE DEL INDICADOR",null,"Cumplimiento en la realización de las Aulas Espejo"]
[null,null,"PROCESO GESTIÓN",null,"Dialogando con el Mundo"]
[null,null,"RESPONSABLE DE MEDICIÓN",null,"Vicerrectoría Académica"]
[]
[null,null,"1. COMPORTAMIENTO DE INDICADOR"]
[null,null,"CLASIFICACIÓN DE LA MEDICIÓN",null,2,null,null,"TIPO DE INDICADOR",null,"Eficacia",null,"META ANUAL",null,40]
[null,null,"FÓRMULA",null,"NUMERADOR",null,"Número de Aulas Espejo realizadas",null,null,null,null,"UNIDAD DE MEDIDA",null,"Número de Aulas Espejo realizadas"]
[null,null,null,null,"DENOMINADOR"]
[null,null,"TENDENCIA",null,"Positiva",null,null,"NIVEL DE SEGREGACIÓN *",null,"No Aplica",null,"ESCALA"]
[null,null,null,null,null,null,null,null,null,null,null,"Deficiente","Aceptable","Bueno","Excelente"]
[null,null,null,null,null,null,null,null,null,null,null,"0 a 14","15 a 29","30 a 40",">40"]
[null,null,"ORIGEN DE DATOS NUMERADOR",null,"CONSOLIDADO DE AULAS ESPEJO",null,null,"FRECUENCIA DE LA MEDICIÓN",null,"SEMESTRAL",null,"FRECUENCIA DE \nRESULTADO",null,"ANUAL"]
[null,null,"ORIGEN DE DATOS DENOMINADOR",null,"CONSOLIDADO DE AULAS ESPEJO"]
[]
[null,null,"RESULTADOS"]
[null,null,null,null,null,null,null,null,null,"ANÁLISIS DE DATOS"]
[null,null,null,null,null,null,null,null,null,"II SEMESTRE\nEn el segundo periodo del año 2024 se han articulado y certificado 18 aulas espejo durante el semestre con la participación activa de todas las facultades; lo anterior, corresponde a la estrategia de internacionalización del currículo a todos los programas por parte del proceso Dialogando con el Mundo."]
[]
[]
[]
[]
[null,null,null,null,null,null,null,null,null,"ACCIÓN FORMULADA"]
[null,null,null,null,null,null,null,null,null,"II SEMESTRE\nPara el segundo periodo académico de 2024, se implusó la participación tanto de estudiantes como de docentes a realizar los ejercicios de aulas espejo, continuando con  la estrategia de formación por programa y así aumentar dicha participación y cumplir la meta establecida.  Para incrementar la internacionalización del currículo se desarrollarán otros eventos internacionales como webinar, cátedras compartidas, estipulados en la política Dialogando con el Mundo."]
[]
[]
[]
[]
[]
[null,null,null,null,null,null,null,null,null,"RESPONSABLE "]
[null,null,null,null,null,null,null,null,null,{"$f":"E14","v":"Vicerrectoría Académica"}]
[]
[]
[null,null,"PERIODO DE EVALUACIÓN"]
[null,null,"MES",{"$f":"IF(J23=\"MENSUAL\",\"ENERO\",IF(J23=\"TRIMESTRAL\",\"MARZO\",IF(J23=\"SEMESTRAL\",\"JUNIO\",IF(J23=\"ANUAL\",YEAR(TODAY()),\"\"))))","v":"JUNIO"},{"$f":"IF(J23=\"MENSUAL\",\"FEBRERO\",IF(J23=\"TRIMESTRAL\",\"JUNIO\",IF(J23=\"SEMESTRAL\",\"DICIEMBRE\",\"\")))","v":"DICIEMBRE"},{"$f":"IF(J23=\"MENSUAL\",\"MARZO\",IF(J23=\"TRIMESTRAL\",\"SEPTIEMBRE\",\"\"))","v":""},{"$f":"IF(J23=\"MENSUAL\",\"ABRIL\",IF(J23=\"TRIMESTRAL\",\"DICIEMBRE\",\"\"))","v":""},{"$f":"IF(J23=\"MENSUAL\",\"MAYO\",\"\")","v":""},{"$f":"IF(J23=\"MENSUAL\",\"JUNIO\",\"\")","v":""},{"$f":"IF(J23=\"MENSUAL\",\"JULIO\",\"\")","v":""},{"$f":"IF(J23=\"MENSUAL\",\"AGOSTO\",\"\")","v":""},{"$f":"IF(J23=\"MENSUAL\",\"SEPTIEMBRE\",\"\")","v":""},{"$f":"IF(J23=\"MENSUAL\",\"OCTUBRE\",\"\")","v":""},{"$f":"IF(J23=\"MENSUAL\",\"NOVIEMBRE\",\"\")","v":""},{"$f":"IF(J23=\"MENSUAL\",\"DICIEMBRE\",\"\")","v":""}]
[null,null,{"$f":"G18","v":"Número de Aulas Espejo realizadas"},18,24]
[]
[null,null,"VALOR ",{"$f":"IFERROR(IF($E$17=1,D46/D47,IF($E$17=2,D46,\"\")),\"\")","v":18},24,0,0,0,0,0,0,0,0,0,0]
[null,null,"META PONDERADA",{"$f":"IF(AND(N23=\"ANUAL\",J23=\"MENSUAL\"),N17/12,IF(AND(N23=\"ANUAL\",J23=\"TRIMESTRAL\"),N17/4,IF(AND(N23=\"ANUAL\",J23=\"SEMESTRAL\"),N17/2,IF(AND(N23=\"ANUAL\",J23=\"ANUAL\"),N17,IF(AND(N23=\"SEMESTRAL\",J23=\"MENSUAL\"),N17/6,IF(AND(N23=\"SEMESTRAL\",J23=\"TRIMESTRAL\"),N17/2,IF(AND(N23=\"SEMESTRAL\",J23=\"SEMESTRAL\"),N17,IF(AND(N23=\"SEMESTRAL\",J23=\"ANUAL\"),\"REVISAR FRECUENCIAS\",IF(AND(N23=\"TRIMESTRAL\",J23=\"MENSUAL\"),N17/3,IF(AND(N23=\"TRIMESTRAL\",J23=\"TRIMESTRAL\"),N17,IF(AND(N23=\"TRIMESTRAL\",J23=\"SEMESTRAL\"),\"REVISAR FRECUENCIAS\",IF(AND(N23=\"TRIMESTRAL\",J23=\"ANUAL\"),\"REVISAR FRECUENCIAS\",IF(AND(N23=\"MENSUAL\",J23=\"MENSUAL\"),N17,IF(AND(N23=\"MENSUAL\",J23=\"TRIMESTRAL\"),\"REVISAR FRECUENCIAS\",IF(AND(N23=\"MENSUAL\",J23=\"SEMESTRAL\"),\"REVISAR FRECUENCIAS\",IF(AND(N23=\"MENSUAL\",J23=\"ANUAL\"),\"REVISAR FRECUENCIAS\",\"\"))))))))))))))))","v":20},{"$f":"IF(AND(N23=\"ANUAL\",J23=\"MENSUAL\"),N17/12+D49,IF(AND(N23=\"ANUAL\",J23=\"TRIMESTRAL\"),N17/4+D49,IF(AND(N23=\"ANUAL\",J23=\"SEMESTRAL\"),N17/2+D49,IF(AND(N23=\"SEMESTRAL\",J23=\"MENSUAL\"),N17/6+D49,IF(AND(N23=\"SEMESTRAL\",J23=\"TRIMESTRAL\"),N17/2+D49,IF(AND(N23=\"SEMESTRAL\",J23=\"SEMESTRAL\"),N17,IF(AND(N23=\"TRIMESTRAL\",J23=\"MENSUAL\"),N17/3+D49,IF(AND(N23=\"TRIMESTRAL\",J23=\"TRIMESTRAL\"),N17,IF(AND(N23=\"MENSUAL\",J23=\"MENSUAL\"),N17,\"\")))))))))","v":40},{"$f":"IF(AND(N23=\"ANUAL\",J23=\"MENSUAL\"),N17/12+E49,IF(AND(N23=\"ANUAL\",J23=\"TRIMESTRAL\"),N17/4+E49,IF(AND(N23=\"SEMESTRAL\",J23=\"MENSUAL\"),N17/6+E49,IF(AND(N23=\"SEMESTRAL\",J23=\"TRIMESTRAL\"),N17/2,IF(AND(N23=\"TRIMESTRAL\",J23=\"MENSUAL\"),N17/3+E49,IF(AND(N23=\"TRIMESTRAL\",J23=\"TRIMESTRAL\"),N17,IF(AND(N23=\"MENSUAL\",J23=\"MENSUAL\"),N17,\"\")))))))","v":""},{"$f":"IF(AND(N23=\"ANUAL\",J23=\"MENSUAL\"),N17/12+F49,IF(AND(N23=\"ANUAL\",J23=\"TRIMESTRAL\"),N17/4+F49,IF(AND(N23=\"SEMESTRAL\",J23=\"MENSUAL\"),N17/6+F49,IF(AND(N23=\"SEMESTRAL\",J23=\"TRIMESTRAL\"),N17/2+F49,IF(AND(N23=\"TRIMESTRAL\",J23=\"MENSUAL\"),N17/3,IF(AND(N23=\"TRIMESTRAL\",J23=\"TRIMESTRAL\"),N17,IF(AND(N23=\"MENSUAL\",J23=\"MENSUAL\"),N17,\"\")))))))","v":""},{"$f":"IF(AND($N$23=\"ANUAL\",$J$23=\"MENSUAL\"),$N$17/12+G49,IF(AND(N23=\"SEMESTRAL\",J23=\"MENSUAL\"),N17/6+G49,IF(AND(N23=\"TRIMESTRAL\",J23=\"MENSUAL\"),N17/3+G49,IF(AND(N23=\"MENSUAL\",J23=\"MENSUAL\"),N17,\"\"))))","v":""},{"$f":"IF(AND($N$23=\"ANUAL\",$J$23=\"MENSUAL\"),$N$17/12+H49,IF(AND(N23=\"SEMESTRAL\",J23=\"MENSUAL\"),N17/6+H49,IF(AND(N23=\"TRIMESTRAL\",J23=\"MENSUAL\"),N17/3+H49,IF(AND(N23=\"MENSUAL\",J23=\"MENSUAL\"),N17,\"\"))))","v":""},{"$f":"IF(AND($N$23=\"ANUAL\",$J$23=\"MENSUAL\"),$N$17/12+I49,IF(AND(N23=\"SEMESTRAL\",J23=\"MENSUAL\"),N17/6,IF(AND(N23=\"TRIMESTRAL\",J23=\"MENSUAL\"),N17/3,IF(AND(N23=\"MENSUAL\",J23=\"MENSUAL\"),N17,\"\"))))","v":""},{"$f":"IF(AND($N$23=\"ANUAL\",$J$23=\"MENSUAL\"),$N$17/12+J49,IF(AND(N23=\"SEMESTRAL\",J23=\"MENSUAL\"),N17/6+J49,IF(AND(N23=\"TRIMESTRAL\",J23=\"MENSUAL\"),N17/3+J49,IF(AND(N23=\"MENSUAL\",J23=\"MENSUAL\"),N17,\"\"))))","v":""},{"$f":"IF(AND($N$23=\"ANUAL\",$J$23=\"MENSUAL\"),$N$17/12+K49,IF(AND(N23=\"SEMESTRAL\",J23=\"MENSUAL\"),N17/6+K49,IF(AND(N23=\"TRIMESTRAL\",J23=\"MENSUAL\"),N17/3+K49,IF(AND(N23=\"MENSUAL\",J23=\"MENSUAL\"),N17,\"\"))))","v":""},{"$f":"IF(AND($N$23=\"ANUAL\",$J$23=\"MENSUAL\"),$N$17/12+L49,IF(AND(N23=\"SEMESTRAL\",J23=\"MENSUAL\"),N17/6+L49,IF(AND(N23=\"TRIMESTRAL\",J23=\"MENSUAL\"),N17/3,IF(AND(N23=\"MENSUAL\",J23=\"MENSUAL\"),N17,\"\"))))","v":""},{"$f":"IF(AND($N$23=\"ANUAL\",$J$23=\"MENSUAL\"),$N$17/12+M49,IF(AND(N23=\"SEMESTRAL\",J23=\"MENSUAL\"),N17/6+M49,IF(AND(N23=\"TRIMESTRAL\",J23=\"MENSUAL\"),N17/3+M49,IF(AND(N23=\"MENSUAL\",J23=\"MENSUAL\"),N17,\"\"))))","v":""},{"$f":"IF(AND($N$23=\"ANUAL\",$J$23=\"MENSUAL\"),$N$17/12+N49,IF(AND(N23=\"SEMESTRAL\",J23=\"MENSUAL\"),N17/6+N49,IF(AND(N23=\"TRIMESTRAL\",J23=\"MENSUAL\"),N17/3+N49,IF(AND(N23=\"MENSUAL\",J23=\"MENSUAL\"),N17,\"\"))))","v":""}]
[]
[null,null,"NIVEL DE SEGREGACIÓN *"]
[null,null,"UNIDAD SEGREGADA (Ej. Facultad, Programa Académico, Área)",null,null,null,"RESULTADO",null,null,null,"ANÁLISIS DE DATOS SEGREGADO"]
[]
[]
[]
[]
[]
[]
[]
[]
[]
[]
[]
[]
[]
[]
[]
[]
[]
[]
[null,null,null,null,null,null,"Estratégico",null,null,"Eficacia"]
[null,null,null,null,null,null,"Misional",null,null,"Eficiencia"]
[null,null,null,null,null,null,"Apoyo",null,null,"Acreditación"]
[null,null,null,null,null,null,"Seguimiento, Medición, Análisis y Evaluación",null,null,"Positiva"]
[null,null,null,null,null,null,"Direccionamiento Estratégico",null,null,"Negativa"]
[null,null,null,null,null,null,"Planeación Institucional",null,null,"Por Unidad Regional"]
[null,null,null,null,null,null,"Proyectos Especiales y Relaciones Interinstitucionales",null,null,"Por Facultad"]
[null,null,null,null,null,null,"Sistemas Integrados",null,null,"Por Programa Académico"]
[null,null,null,null,null,null,"Autoevaluación y Acreditación",null,null,"Por área"]
[null,null,null,null,null,null,"Comunicaciones",null,null,"Por Laboratorio"]
[null,null,null,null,null,null,"Formación y Aprendizaje",null,null,"Otros"]
[null,null,null,null,null,null,"Ciencia, Tecnología e Innovación",null,null,"No Aplica"]
[null,null,null,null,null,null,"Interacción Social Universitaria"]
[null,null,null,null,null,null,"Bienestar Universitario"]
[null,null,null,null,null,null,"Admisiones y Registro"]
[null,null,null,null,null,null,"Graduados"]
[null,null,null,null,null,null,"Dialogando con el Mundo"]
[null,null,null,null,null,null,"Talento Humano"]
[null,null,null,null,null,null,"Jurídica"]
[null,null,null,null,null,null,"Financiera"]
[null,null,null,null,null,null,"Sistemas y Tecnología"]
[null,null,null,null,null,null,"Bienes y Servicios"]
[null,null,null,null,null,null,"Documental"]
[null,null,null,null,null,null,"Apoyo Académico"]
[null,null,null,null,null,null,"Control Interno"]
[null,null,null,null,null,null,"Control Disciplinario"]
[null,null,null,null,null,null,"Servicio de Atención al Ciudadano"]

{"sheet":"MDM-5","index":4,"n_rows":97,"n_cols":15,"rows_kept":97,"cut":false,"hidden":false,"merged":[[58,2,58,5],[58,6,58,9],[58,10,58,14],[56,2,56,5],[56,6,56,9],[56,10,56,14],[57,2,57,5],[57,6,57,9],[57,10,57,14],[54,2,54,5],[54,6,54,9],[54,10,54,14],[55,2,55,5],[55,6,55,9],[55,10,55,14],[52,2,52,5],[52,6,52,9],[52,10,52,14],[53,2,53,5],[53,6,53,9],[53,10,53,14],[51,2,51,5],[51,6,51,9],[51,10,51,14],[26,15,27,15],[27,9,31,14],[32,9,32,14],[33,9,38,14],[39,9,39,14],[40,9,40,14],[43,2,43,14],[45,2,46,2],[45,3,46,3],[45,4,46,4],[50,2,50,14],[22,13,23,14],[23,2,23,3],[23,4,23,6],[25,2,25,14],[26,2,41,8],[26,9,26,14],[41,9,41,14],[22,2,22,3],[22,4,22,6],[22,7,23,8],[22,9,23,10],[22,11,23,12],[19,2,21,3],[19,4,21,6],[19,7,21,8],[19,9,21,10],[19,11,19,14],[16,15,17,15],[17,2,18,3],[17,4,17,5],[17,6,18,10],[17,11,18,12],[17,13,18,14],[18,4,18,5],[16,2,16,3],[16,4,16,6],[16,7,16,8],[16,9,16,10],[16,11,16,12],[16,13,16,14],[15,2,15,14],[8,2,8,14],[9,2,10,14],[11,2,11,3],[11,4,11,7],[11,8,11,9],[11,10,11,14],[12,2,12,3],[12,4,12,14],[13,2,13,3],[13,4,13,14],[14,2,14,14],[1,1,3,2],[4,2,7,3],[4,4,4,11],[4,12,4,14],[5,4,5,11],[5,12,5,14],[6,4,7,11],[6,12,6,14],[7,12,7,14]]}
[]
[null,"      REGRESAR"]
[]
[]
[null,null,null,null,"MACROPROCESO ESTRATÉGICO",null,null,null,null,null,null,null,"CÓDIGO: ESGr027"]
[null,null,null,null,"PROCESO GESTIÓN SISTEMAS INTEGRADOS",null,null,null,null,null,null,null,"VERSIÓN: 8"]
[null,null,null,null,"MATRIZ DE MEDICIÓN Y SEGUIMIENTO A LOS PROCESOS DE GESTIÓN",null,null,null,null,null,null,null,"VIGENCIA: 2023-07-28"]
[null,null,null,null,null,null,null,null,null,null,null,null,"PÁGINA: 5 de 6"]
[]
[null,null,"FICHA DE INDICADOR"]
[]
[null,null,"MACROPROCESO",null,"Misional",null,null,null,"NOMBRE DEL INDICADOR",null,"Convenios de Investigación Conjunta firmados"]
[null,null,"PROCESO GESTIÓN",null,"Dialogando con el Mundo"]
[null,null,"RESPONSABLE DE MEDICIÓN",null,"Vicerrectoría Académica"]
[]
[null,null,"1. COMPORTAMIENTO DE INDICADOR"]
[null,null,"CLASIFICACIÓN DE LA MEDICIÓN",null,2,null,null,"TIPO DE INDICADOR",null,"Eficacia",null,"META ANUAL",null,6]
[null,null,"FÓRMULA",null,"NUMERADOR",null,"Número de convenios legalizados de investigación conjunta internacional en ejecución en la UDEC",null,null,null,null,"UNIDAD DE MEDIDA",null,"Número de convenios legalizados"]
[null,null,null,null,"DENOMINADOR"]
[null,null,"TENDENCIA",null,"Positiva",null,null,"NIVEL DE SEGREGACIÓN *",null,"No Aplica",null,"ESCALA"]
[null,null,null,null,null,null,null,null,null,null,null,"Deficiente","Aceptable","Bueno","Excelente"]
[null,null,null,null,null,null,null,null,null,null,null,0,"1 a 3","4 a 6",">6"]
[null,null,"ORIGEN DE DATOS NUMERADOR",null,"Convenios de investigación conjunta internacional firmados",null,null,"FRECUENCIA DE LA MEDICIÓN",null,"SEMESTRAL",null,"FRECUENCIA DE RESULTADO",null,"ANUAL"]
[null,null,"ORIGEN DE DATOS DENOMINADOR",null,"Convenios de investigación conjunta internacional firmados"]
[]
[null,null,"RESULTADOS"]
[null,null,null,null,null,null,null,null,null,"ANÁLISIS DE DATOS"]
[null,null,null,null,null,null,null,null,null,"II SEMESTRE\nCon la gestión de Dialogando con el mundo se logró la firma de 2 convenios marco con el Tecnoloógico San Juan del Río y Sinaloa, los cuales permiten la ejecución de experiencias de cooperación como investigación y movilidad entre otros. "]
[]
[]
[]
[]
[null,null,null,null,null,null,null,null,null,"ACCIÓN FORMULADA"]
[null,null,null,null,null,null,null,null,null,"II SEMESTRE\nSe está gestionando la articulación de los proceso de investigación desde la creación y aprobación institucional de la REDLUT y el proceso de Ciencia Tecnología e Investigación. Conformación de la red latinoamericana de universidades translocales - REDLUT y diseñar la estrategia de articulación entre la investigación y la internacionalización de la Universidad de Cundinamarca."]
[]
[]
[]
[]
[]
[null,null,null,null,null,null,null,null,null,"RESPONSABLE "]
[null,null,null,null,null,null,null,null,null,{"$f":"E14","v":"Vicerrectoría Académica"}]
[]
[]
[null,null,"PERIODO DE EVALUACIÓN"]
[null,null,"MES",{"$f":"IF(J23=\"MENSUAL\",\"ENERO\",IF(J23=\"TRIMESTRAL\",\"MARZO\",IF(J23=\"SEMESTRAL\",\"JUNIO\",IF(J23=\"ANUAL\",YEAR(TODAY()),\"\"))))","v":"JUNIO"},{"$f":"IF(J23=\"MENSUAL\",\"FEBRERO\",IF(J23=\"TRIMESTRAL\",\"JUNIO\",IF(J23=\"SEMESTRAL\",\"DICIEMBRE\",\"\")))","v":"DICIEMBRE"},{"$f":"IF(J23=\"MENSUAL\",\"MARZO\",IF(J23=\"TRIMESTRAL\",\"SEPTIEMBRE\",\"\"))","v":""},{"$f":"IF(J23=\"MENSUAL\",\"ABRIL\",IF(J23=\"TRIMESTRAL\",\"DICIEMBRE\",\"\"))","v":""},{"$f":"IF(J23=\"MENSUAL\",\"MAYO\",\"\")","v":""},{"$f":"IF(J23=\"MENSUAL\",\"JUNIO\",\"\")","v":""},{"$f":"IF(J23=\"MENSUAL\",\"JULIO\",\"\")","v":""},{"$f":"IF(J23=\"MENSUAL\",\"AGOSTO\",\"\")","v":""},{"$f":"IF(J23=\"MENSUAL\",\"SEPTIEMBRE\",\"\")","v":""},{"$f":"IF(J23=\"MENSUAL\",\"OCTUBRE\",\"\")","v":""},{"$f":"IF(J23=\"MENSUAL\",\"NOVIEMBRE\",\"\")","v":""},{"$f":"IF(J23=\"MENSUAL\",\"DICIEMBRE\",\"\")","v":""}]
[null,null,{"$f":"G18","v":"Número de convenios legalizados de investigación conjunta internacional en ejecución en la UDEC"},3,2]
[]
[null,null,"VALOR ",{"$f":"D46","v":3},{"$f":"E46","v":2},{"$f":"IFERROR(IF($E$17=1,F46/F47,IF($E$17=2,F46,\"\")),\"\")","v":0},0,0,0,0,0,0,0,0,0]
[null,null,"META PONDERADA",{"$f":"IF(AND(N23=\"ANUAL\",J23=\"MENSUAL\"),N17/12,IF(AND(N23=\"ANUAL\",J23=\"TRIMESTRAL\"),N17/4,IF(AND(N23=\"ANUAL\",J23=\"SEMESTRAL\"),N17/2,IF(AND(N23=\"ANUAL\",J23=\"ANUAL\"),N17,IF(AND(N23=\"SEMESTRAL\",J23=\"MENSUAL\"),N17/6,IF(AND(N23=\"SEMESTRAL\",J23=\"TRIMESTRAL\"),N17/2,IF(AND(N23=\"SEMESTRAL\",J23=\"SEMESTRAL\"),N17,IF(AND(N23=\"SEMESTRAL\",J23=\"ANUAL\"),\"REVISAR FRECUENCIAS\",IF(AND(N23=\"TRIMESTRAL\",J23=\"MENSUAL\"),N17/3,IF(AND(N23=\"TRIMESTRAL\",J23=\"TRIMESTRAL\"),N17,IF(AND(N23=\"TRIMESTRAL\",J23=\"SEMESTRAL\"),\"REVISAR FRECUENCIAS\",IF(AND(N23=\"TRIMESTRAL\",J23=\"ANUAL\"),\"REVISAR FRECUENCIAS\",IF(AND(N23=\"MENSUAL\",J23=\"MENSUAL\"),N17,IF(AND(N23=\"MENSUAL\",J23=\"TRIMESTRAL\"),\"REVISAR FRECUENCIAS\",IF(AND(N23=\"MENSUAL\",J23=\"SEMESTRAL\"),\"REVISAR FRECUENCIAS\",IF(AND(N23=\"MENSUAL\",J23=\"ANUAL\"),\"REVISAR FRECUENCIAS\",\"\"))))))))))))))))","v":3},{"$f":"IF(AND(N23=\"ANUAL\",J23=\"MENSUAL\"),N17/12+D49,IF(AND(N23=\"ANUAL\",J23=\"TRIMESTRAL\"),N17/4+D49,IF(AND(N23=\"ANUAL\",J23=\"SEMESTRAL\"),N17/2+D49,IF(AND(N23=\"SEMESTRAL\",J23=\"MENSUAL\"),N17/6+D49,IF(AND(N23=\"SEMESTRAL\",J23=\"TRIMESTRAL\"),N17/2+D49,IF(AND(N23=\"SEMESTRAL\",J23=\"SEMESTRAL\"),N17,IF(AND(N23=\"TRIMESTRAL\",J23=\"MENSUAL\"),N17/3+D49,IF(AND(N23=\"TRIMESTRAL\",J23=\"TRIMESTRAL\"),N17,IF(AND(N23=\"MENSUAL\",J23=\"MENSUAL\"),N17,\"\")))))))))","v":6},{"$f":"IF(AND(N23=\"ANUAL\",J23=\"MENSUAL\"),N17/12+E49,IF(AND(N23=\"ANUAL\",J23=\"TRIMESTRAL\"),N17/4+E49,IF(AND(N23=\"SEMESTRAL\",J23=\"MENSUAL\"),N17/6+E49,IF(AND(N23=\"SEMESTRAL\",J23=\"TRIMESTRAL\"),N17/2,IF(AND(N23=\"TRIMESTRAL\",J23=\"MENSUAL\"),N17/3+E49,IF(AND(N23=\"TRIMESTRAL\",J23=\"TRIMESTRAL\"),N17,IF(AND(N23=\"MENSUAL\",J23=\"MENSUAL\"),N17,\"\")))))))","v":""},{"$f":"IF(AND(N23=\"ANUAL\",J23=\"MENSUAL\"),N17/12+F49,IF(AND(N23=\"ANUAL\",J23=\"TRIMESTRAL\"),N17/4+F49,IF(AND(N23=\"SEMESTRAL\",J23=\"MENSUAL\"),N17/6+F49,IF(AND(N23=\"SEMESTRAL\",J23=\"TRIMESTRAL\"),N17/2+F49,IF(AND(N23=\"TRIMESTRAL\",J23=\"MENSUAL\"),N17/3,IF(AND(N23=\"TRIMESTRAL\",J23=\"TRIMESTRAL\"),N17,IF(AND(N23=\"MENSUAL\",J23=\"MENSUAL\"),N17,\"\")))))))","v":""},{"$f":"IF(AND($N$23=\"ANUAL\",$J$23=\"MENSUAL\"),$N$17/12+G49,IF(AND(N23=\"SEMESTRAL\",J23=\"MENSUAL\"),N17/6+G49,IF(AND(N23=\"TRIMESTRAL\",J23=\"MENSUAL\"),N17/3+G49,IF(AND(N23=\"MENSUAL\",J23=\"MENSUAL\"),N17,\"\"))))","v":""},{"$f":"IF(AND($N$23=\"ANUAL\",$J$23=\"MENSUAL\"),$N$17/12+H49,IF(AND(N23=\"SEMESTRAL\",J23=\"MENSUAL\"),N17/6+H49,IF(AND(N23=\"TRIMESTRAL\",J23=\"MENSUAL\"),N17/3+H49,IF(AND(N23=\"MENSUAL\",J23=\"MENSUAL\"),N17,\"\"))))","v":""},{"$f":"IF(AND($N$23=\"ANUAL\",$J$23=\"MENSUAL\"),$N$17/12+I49,IF(AND(N23=\"SEMESTRAL\",J23=\"MENSUAL\"),N17/6,IF(AND(N23=\"TRIMESTRAL\",J23=\"MENSUAL\"),N17/3,IF(AND(N23=\"MENSUAL\",J23=\"MENSUAL\"),N17,\"\"))))","v":""},{"$f":"IF(AND($N$23=\"ANUAL\",$J$23=\"MENSUAL\"),$N$17/12+J49,IF(AND(N23=\"SEMESTRAL\",J23=\"MENSUAL\"),N17/6+J49,IF(AND(N23=\"TRIMESTRAL\",J23=\"MENSUAL\"),N17/3+J49,IF(AND(N23=\"MENSUAL\",J23=\"MENSUAL\"),N17,\"\"))))","v":""},{"$f":"IF(AND($N$23=\"ANUAL\",$J$23=\"MENSUAL\"),$N$17/12+K49,IF(AND(N23=\"SEMESTRAL\",J23=\"MENSUAL\"),N17/6+K49,IF(AND(N23=\"TRIMESTRAL\",J23=\"MENSUAL\"),N17/3+K49,IF(AND(N23=\"MENSUAL\",J23=\"MENSUAL\"),N17,\"\"))))","v":""},{"$f":"IF(AND($N$23=\"ANUAL\",$J$23=\"MENSUAL\"),$N$17/12+L49,IF(AND(N23=\"SEMESTRAL\",J23=\"MENSUAL\"),N17/6+L49,IF(AND(N23=\"TRIMESTRAL\",J23=\"MENSUAL\"),N17/3,IF(AND(N23=\"MENSUAL\",J23=\"MENSUAL\"),N17,\"\"))))","v":""},{"$f":"IF(AND($N$23=\"ANUAL\",$J$23=\"MENSUAL\"),$N$17/12+M49,IF(AND(N23=\"SEMESTRAL\",J23=\"MENSUAL\"),N17/6+M49,IF(AND(N23=\"TRIMESTRAL\",J23=\"MENSUAL\"),N17/3+M49,IF(AND(N23=\"MENSUAL\",J23=\"MENSUAL\"),N17,\"\"))))","v":""},{"$f":"IF(AND($N$23=\"ANUAL\",$J$23=\"MENSUAL\"),$N$17/12+N49,IF(AND(N23=\"SEMESTRAL\",J23=\"MENSUAL\"),N17/6+N49,IF(AND(N23=\"TRIMESTRAL\",J23=\"MENSUAL\"),N17/3+N49,IF(AND(N23=\"MENSUAL\",J23=\"MENSUAL\"),N17,\"\"))))","v":""}]
[]
[null,null,"NIVEL DE SEGREGACIÓN *"]
[null,null,"UNIDAD SEGREGADA (Ej. Facultad, Programa Académico, Área)",null,null,null,"RESULTADO",null,null,null,"ANÁLISIS DE DATOS SEGREGADO"]
[]
[]
[]
[]
[]
[]
[]
[]
[]
[]
[]
[]
[]
[]
[]
[]
[]
[]
[null,null,null,null,null,null,"Estratégico",null,null,"Eficacia"]
[null,null,null,null,null,null,"Misional",null,null,"Eficiencia"]
[null,null,null,null,null,null,"Apoyo",null,null,"Acreditación"]
[null,null,null,null,null,null,"Seguimiento, Medición, Análisis y Evaluación",null,null,"Positiva"]
[null,null,null,null,null,null,"Direccionamiento Estratégico",null,null,"Negativa"]
[null,null,null,null,null,null,"Planeación Institucional",null,null,"Por Unidad Regional"]
[null,null,null,null,null,null,"Proyectos Especiales y Relaciones Interinstitucionales",null,null,"Por Facultad"]
[null,null,null,null,null,null,"Sistemas Integrados",null,null,"Por Programa Académico"]
[null,null,null,null,null,null,"Autoevaluación y Acreditación",null,null,"Por área"]
[null,null,null,null,null,null,"Comunicaciones",null,null,"Por Laboratorio"]
[null,null,null,null,null,null,"Formación y Aprendizaje",null,null,"Otros"]
[null,null,null,null,null,null,"Ciencia, Tecnología e Innovación",null,null,"No Aplica"]
[null,null,null,null,null,null,"Interacción Social Universitaria"]
[null,null,null,null,null,null,"Bienestar Universitario"]
[null,null,null,null,null,null,"Admisiones y Registro"]
[null,null,null,null,null,null,"Graduados"]
[null,null,null,null,null,null,"Dialogando con el Mundo"]
[null,null,null,null,null,null,"Talento Humano"]
[null,null,null,null,null,null,"Jurídica"]
[null,null,null,null,null,null,"Financiera"]
[null,null,null,null,null,null,"Sistemas y Tecnología"]
[null,null,null,null,null,null,"Bienes y Servicios"]
[null,null,null,null,null,null,"Documental"]
[null,null,null,null,null,null,"Apoyo Académico"]
[null,null,null,null,null,null,"Control Interno"]
[null,null,null,null,null,null,"Control Disciplinario"]
[null,null,null,null,null,null,"Servicio de Atención al Ciudadano"]

{"sheet":"ACTUALIZACIONES","index":5,"n_rows":16,"n_cols":5,"rows_kept":16,"cut":false,"hidden":false,"merged":[[1,2,1,3],[1,1,4,1],[12,1,12,4],[15,1,15,4],[6,1,6,4],[3,2,4,3],[2,2,2,3]]}
[]
[null,null,"MACROPROCESO ESTRATÉGICO",null,"CÓDIGO: ESGr027"]
[null,null,"PROCESO GESTIÓN SISTEMAS INTEGRADOS - CALIDAD",null,"VERSIÓN: 8"]
[null,null,"MATRIZ DE MEDICIÓN Y SEGUIMIENTO A LOS PROCESOS DE GESTIÓN",null,"VIGENCIA: 2023-07-28"]
[null,null,null,null,"PÁGINA: 6 de 6"]
[]
[null,"CONTROL DE ACTUALIZACIONES"]
[null,"FECHA","DESCRIPCIÓN DE LA ACTUALIZACIÓN","RESPONSABLE","CARGO"]
[null,"2021-04-14","MDM-1: Se evidenció en la mesa de trabajo que el indicador  MDM-1 No es posible medirlo durante el periodo en que se prolongue la contingencia del covid-19, debido a las restricciones de movilidad que han impuesto los países.","Fabián Libardo Leal Orjuela","Coordinador Dialogando con el Mundo"]
[null,"24/03/2023","MDM-1: \"Estudiantes beneficiados con la implementación de la acción estratégica de movilidad académica y alianzas correspondiente a la política Dialogando con el Mundo.\" De acuerdo al comportamiento del indicador en  el 2022 se incrementa la meta al 80 el número de estudiantes beneficiados.\nMDM-4 \"Cumplimiento en la realización de las Aulas Espejo\" se incrementa la meta a 40 el número de aulas espejo realizadas.\nMDM-3 \"Dinamizar Convenios\" por los resultados obtenidos en el 2022 se incrementa la meta a un 60%\nMDM-5 \"Convenios de Investigación Conjunta firmados\" de acuerdo al comportamiento en la medición del indicador se sube la meta a 6 el número de convenios firmados.","Fabián Libardo Leal Orjuela","Coordinador Dialogando con el Mundo"]
[null,"2021-04-14","MDM-1: Se evidenció en la mesa de trabajo que el indicador  MDM-1 No es posible medirlo durante el periodo en que se prolongue la contingencia del covid-19, debido a las restricciones de movilidad que han impuesto los países.","Fabián Libardo Leal Orjuela","Coordinador Dialogando con el Mundo"]
[]
[null,"Diagonal 18 No. 20-29 Fusagasugá – Cundinamarca\nTeléfono (601)  8281483 Línea Gratuita 018000180414\nwww.ucundinamarca.edu.co   E-mail:  info@ucundinamarca.edu.co\nNIT: 890.680.062-2                                                                             "]
[]
[]
[null,"Documento controlado por el Sistema de Gestión de la Calidad\nAsegúrese que corresponde a la última versión consultando el Portal Institucional"]

{"sheet":"ITEM","index":6,"n_rows":4,"n_cols":3,"rows_kept":4,"cut":false,"hidden":true,"merged":[]}
["MENSUAL",null,"NÚMERO"]
["TRIMESTRAL",null,"PORCENTAJE"]
["SEMESTRAL"]
["ANUAL"]